Cogmind - Beta 14 @@@ ROGUE MODE // 2025.02.28 @ 19:17:37 Player: winnking222 Result: Destroyed by Piercing Trap Performance ------------- Evolutions (0) 0 Regions Visited (3) 600 Robots Destroyed (21) 105 Value Destroyed (443) 443 Prototype IDs (1) 20 Alien Tech Used (0) 0 Bonus (58) 58 TOTAL SCORE: 1226 Bonus ------- Follower Combat Kills 58 Cogmind --------- Core Integrity 0/250 Matter 274/300 Energy 198/200 System Corruption 2% Temperature Cool (0) Movement Rolling (110) Location -10/Subcaves Parts ------- > --- POWER (1) -------- Subdweller Power Source > --- PROPULSION (2) --- Subdweller Monowheel Subdweller Monowheel > --- UTILITY (2) ------ Subdweller Optics (fused) V3-11A's Pendant (fused) > --- WEAPON (2) ------- Makeshift Laser Battle Cannon > --- INVENTORY (5) ---- Scrap Shield Subdweller Shrapnel Launcher Makeshift Sword Peak State ------------ > --- POWER ------------ Subdweller Power Source > --- PROPULSION ------- Subdweller Monowheel Subdweller Monowheel > --- UTILITY ---------- Subdweller Optics V3-11A's Pendant > --- WEAPON ----------- Makeshift Laser Battle Cannon > --- INVENTORY -------- Subdweller Monowheel Scrap Shield Subdweller Shrapnel Launcher Makeshift Sword [Rating: 18] Favorites ----------- Power Subdweller Power Source Engine Subdweller Power Source Propulsion Subdweller Monowheel Leg Aluminum Leg Wheel Subdweller Monowheel Utility Small Storage Unit Device V3-11A's Pendant Storage Small Storage Unit Processor Signal Interpreter Protection Scrap Shield Weapon Shotgun Energy Gun Makeshift Laser Ballistic Gun Shotgun Ballistic Cannon Battle Cannon Launcher Subdweller Shrapnel Launcher Slashing Weapon Mining Claw Build | -11 -10 -10 -10 ------- Run | Yrd Mat Min Sub Slots Evolved . | . . . . Power . | . . . . Propulsion . | . . . . Utility . | . . . . Weapon . | . . . . Parts Attached 30 | 6 8 . 16 Power 6 | 1 2 . 3 Engine 6 | 1 2 . 3 Core . | . . . . Reactor . | . . . . Propulsion 6 | 2 . . 4 Treads . | . . . . Leg 2 | 2 . . . Wheel 4 | . . . 4 Hover . | . . . . Flight . | . . . . Utility 6 | 1 2 . 3 Device 2 | . . . 2 Storage 1 | 1 . . . Processor 1 | . 1 . . Hackware . | . . . . Protection 2 | . 1 . 1 Artifact . | . . . . Weapon 12 | 2 4 . 6 Energy Gun 2 | 1 . . 1 Energy Cannon . | . . . . Ballistic Gun 5 | 1 2 . 2 Ballistic Cannon 1 | . . . 1 Launcher 2 | . . . 2 Special Weapon . | . . . . Impact Weapon . | . . . . Slashing Weapon 2 | . 2 . . Piercing Weapon . | . . . . Special Melee Weapon . | . . . . Unidentified Prototypes 1 | . . . 1 Parts Lost 4 | . 2 . 2 Power 1 | . . . 1 Propulsion 2 | . 1 . 1 Utility . | . . . . Weapon 1 | . 1 . . Highest Loss Streak 2 | . 2 . 2 To Critical Strikes . | . . . . Average Slot Usage (%) 91 | . 97 85 90 Engine 13 | . 14 14 13 Leg 8 | . 26 14 . Wheel 15 | . . . 26 Device 8 | . . . 14 Storage 6 | . 14 14 1 Processor 3 | . 4 14 1 Protection 5 | . 8 . 5 Energy Gun 6 | . 3 . 9 Ballistic Gun 8 | . 5 28 6 Ballistic Cannon 6 | . . . 11 Slashing Weapon 4 | . 18 . . Peak Build Rating 18 | 6 8 8 18 Average Rating 12 | 4 6 8 15 On Entrance 5 | . 6 8 8 Naked Turns . | . . . . Heaviest Build 34 | 13 16 14 34 Greatest Support 40 | 20 20 10 40 Greatest Overweight (x) 3 | . 1 1 3 Average Overweight (x) . | . . 1 . Largest Inventory Capacity 8 | 8 8 8 8 Average Capacity 6 | 7 8 8 5 Most Carried 8 | 5 5 4 8 Average Carried 3 | 1 2 4 4 Final Capacity 8 | 8 8 8 5 Final Carried 4 | 1 4 4 4 Class Distribution -------------------- 79% | Mutant 20% | Subdweller-Mutant Dominant Class ---------------- Mutant | -10/Materials Mutant | -10/Mines Mutant | -10/Subcaves Resources | -11 -10 -10 -10 ----------- Run | Yrd Mat Min Sub Matter Collected 853 | 265 70 . 518 Remotely . | . . . . Salvage Created 557 | 95 333 . 129 Parts 39 | . 26 . 13 Haulers Intercepted 1 | . 1 . . Recyclers Shooed . | . . . . Parts Field Recycled . | . . . . Retrieved Matter . | . . . . Parts Self-Destructed 17 | . . . 17 Prevented . | . . . . Kills | -11 -10 -10 -10 ------- Run | Yrd Mat Min Sub Combat Hostiles Destroyed 13 | . 5 . 8 Melee 2 | . 2 . . Guns 6 | . 2 . 4 AOE 5 | . 1 . 4 Classes Destroyed 8 | 1 5 . 2 Builder 2 | . 2 . . Tunneler 1 | . 1 . . Hauler 1 | . 1 . . Recycler 2 | 1 1 . . Turret 2 | . . . 2 Swarmer 5 | . 2 . 3 Grunt 3 | . 3 . . Subdweller 5 | . . . 5 Best Kill Streak 5 | 1 4 . 5 Combat Bots Only 3 | . 2 . 3 Max Kills in Single Turn 3 | 1 1 . 3 Gunslinging . | . . . . Exploded 3 | . 1 . 3 Melee 1 | . 1 . . Uniques/NPCs Destroyed . | . . . . Combat | -11 -10 -10 -10 -------- Run | Yrd Mat Min Sub Hostile Shots Fired 105 | . 69 . 36 Missed 34 | . 21 . 13 Damage Taken 1003 | 31 474 . 498 Core 251 | . 127 . 124 Absorbed by Shields . | . . . . Core Remaining (%) 100 | 100 . . . Volleys Fired 51 | 5 22 . 24 Largest 2 | 2 2 . 2 Hottest 79 | 60 60 . 79 Shots Fired 93 | 10 43 . 40 Gun 72 | 10 43 . 19 Cannon 12 | . . . 12 Launcher 9 | . . . 9 Special . | . . . . Kinetic 69 | 5 24 . 40 Thermal . | . . . . Explosive . | . . . . Electromagnetic 24 | 5 19 . . Robot Hit Streak 10 | 3 10 . 10 Robot Miss Streak 3 | 1 3 . 2 Penetration Max . | . . . . Secondary Targets . | . . . . Shots Hit Robots 76 | 6 38 . 32 Core Hits 32 | 1 13 . 18 Critical Kills . | . . . . Critical Parts Destroyed 1 | . . . 1 Critical Strikes 1 | . . . 1 Destroy 1 | . . . 1 Melee Attacks 38 | . 38 . . Impact . | . . . . Slashing 38 | . 38 . . Piercing . | . . . . Sneak Attacks 6 | . 6 . . Combat Hostiles . | . . . . Follow-up Attacks 2 | . 2 . . Damage Inflicted 1938 | 145 743 . 1050 Guns 689 | 74 264 . 351 Cannons 150 | . . . 150 Explosions 693 | 71 73 . 549 Melee 406 | . 406 . . Ramming . | . . . . Kinetic 1186 | 7 129 . 1050 Thermal 144 | 71 73 . . Explosive . | . . . . Electromagnetic 202 | 67 135 . . Impact . | . . . . Slashing 406 | . 406 . . Piercing . | . . . . Highest Corruption 2 | . 2 2 2 Average Corruption 1 | . 1 2 2 Corruption Purged . | . . . . Corruption Blocked . | . . . . Effects 31 | . 7 4 20 Message Errors 11 | . 3 2 6 Matter Fused 4 | . . . 4 Heat Flow Errors 5 | . 1 . 4 Energy Discharges 3 | . 2 1 . Parts Fused 2 | . . . 2 Data Loss (minor) 5 | . . 1 4 Weapon Failures 1 | . 1 . . Overload Shots . | . . . . Overflow Damage 47 | . 40 . 7 Projectiles 7 | . . . 7 Explosions . | . . . . Melee 40 | . 40 . . Knockbacks 1 | . . . 1 Impact . | . . . . Kinetic 1 | . . . 1 Secondary . | . . . . Self-Inflicted Damage 145 | 31 37 . 77 Shots 6 | 1 1 . 4 Rammed . | . . . . Targets Rammed . | . . . . Kicked . | . . . . Crushed . | . . . . Highest Temperature 229 | 52 219 . 229 Average Temperature 66 | 29 66 . 91 Received Heat Transfer 243 | . 126 . 117 Siege Activations . | . . . . Robots Corrupted . | . . . . Combat Hostiles . | . . . . Parts Fried 1 | . 1 . . Impact Corruptions . | . . . . Robots Melted . | . . . . Combat Hostiles . | . . . . Parts Melted 1 | 1 . . . Heat Transferred 150 | 100 50 . . Parts Sabotaged . | . . . . Parts Stolen . | . . . . Parts Stripped . | . . . . Power Chain Reactions 2 | 1 1 . . Alert | -11 -10 -10 -10 ------- Run | Yrd Mat Min Sub Peak Influence 65 | 5 65 25 . Initial 25 | . 3 25 . Average 30 | 2 36 25 . Maximum Alert Level . | . . . . Low Security (%) 100 | 100 100 100 . Level 1 . | . . . . Level 2 . | . . . . Level 3 . | . . . . Level 4 . | . . . . Level 5 . | . . . . High Security . | . . . . Max Security . | . . . . Squads Dispatched 1 | . 1 . . Investigation . | . . . . Extermination . | . . . . Reinforcement 1 | . 1 . . Assault . | . . . . Garrison . | . . . . Intercept . | . . . . Searches Triggered . | . . . . Construction Impeded . | . . . . Haulers Reinforced . | . . . . Active Scanning Responses . | . . . . Cargo Convoy Interrupts . | . . . . Stealth | -11 -10 -10 -10 --------- Run | Yrd Mat Min Sub Distress Signals 1 | . 1 . . Communications Jammed . | . . . . Distress Signals . | . . . . Times Spotted 21 | . 10 . 11 Peak Tracking Total 6 | . 6 . 5 Tactical Retreats . | . . . . Traps | -11 -10 -10 -10 ------- Run | Yrd Mat Min Sub Traps Triggered 3 | . 2 . 1 Indirectly . | . . . . Trap Hack Attempts . | . . . . Triggered . | . . . . Disarmed . | . . . . Reprogrammed . | . . . . Reused . | . . . . Traps Extracted . | . . . . Installed . | . . . . Triggered . | . . . . Machines | -11 -10 -10 -10 ---------- Run | Yrd Mat Min Sub Machines Disabled 1 | . . . 1 Max in Single Turn 1 | . . . 1 Machines Repaired . | . . . . Machines Dismantled . | . . . . Machines Sabotaged . | . . . . Overloaded Fab Kills . | . . . . Hacking | -11 -10 -10 -10 --------- Run | Yrd Mat Min Sub Machines Accessed 1 | . . . 1 Terminals . | . . . . Fabricators . | . . . . Repair Stations . | . . . . Recycling Units . | . . . . Scanalyzers . | . . . . Garrison Access . | . . . . Total Hacks 3 | . . . 3 Successful 3 | . . . 3 Failed . | . . . . Catastrophic . | . . . . Database Lockouts . | . . . . Manual . | . . . . Terminals . | . . . . Fabricators . | . . . . Repair Stations . | . . . . Recycling Units . | . . . . Scanalyzers . | . . . . Garrison Access . | . . . . Terminal Hacks 3 | . . . 3 Record 3 | . . . 3 Fabricator Hacks . | . . . . Repair Station Hacks . | . . . . Recycling Unit Hacks . | . . . . Scanalyzer . | . . . . Garrison Access Hacks . | . . . . Unauthorized Hacks . | . . . . Terminals . | . . . . Fabricators . | . . . . Repair Stations . | . . . . Recycling Units . | . . . . Scanalyzers . | . . . . Garrison Access . | . . . . Data Cores Recovered . | . . . . Used . | . . . . Hacking Detections . | . . . . Full Trace Events . | . . . . Feedback Events . | . . . . Feedback Blocked . | . . . . Robot Schematics Acquired . | . . . . Robots Built . | . . . . Authchips . | . . . . Time . | . . . . Total Robot Build Rating . | . . . . Part Schematics Acquired . | . . . . Parts Built . | . . . . Authchips . | . . . . Time . | . . . . Total Part Build Rating . | . . . . Parts Repaired . | . . . . Time . | . . . . Parts Recycled . | . . . . Recycled Matter . | . . . . Retrieved Matter . | . . . . Retrieved Components . | . . . . Parts Scanalyzed . | . . . . Part Schematics Acquired . | . . . . Parts Damaged . | . . . . Bothacking | -11 -10 -10 -10 ------------ Run | Yrd Mat Min Sub Used RIF Installer . | . . . . Robots Hacked . | . . . . Non-combat . | . . . . Combat . | . . . . Robot Hacks Applied . | . . . . Relay Couplers Released . | . . . . Fabnet Peak Effective % . | . . . . Robots Rewired . | . . . . Allies Hacked . | . . . . Hacks Repelled . | . . . . Allies | -11 -10 -10 -10 -------- Run | Yrd Mat Min Sub Total Allies 5 | . . . 5 Largest Group 5 | . . . 5 Highest-Rated Group 95 | . . . 95 Highest-Rated Ally 19 | . . . 19 Total Orders . | . . . . Ally Attacks 6 | . . . 6 Total Damage 93 | . . . 93 Kills 2 | . . . 2 Allies Corrupted . | . . . . Allies Melted . | . . . . Intel | -11 -10 -10 -10 ------- Run | Yrd Mat Min Sub Robot Analysis Total . | . . . . Derelict Logs Recovered 1 | . . . 1 Drone Launches . | . . . . Drone Recoveries . | . . . . Exploration | -11 -10 -10 -10 ------------- Run | Yrd Mat Min Sub Turns Passed 2543 | 54 616 359 1514 Spaces Moved 1678 | 33 337 51 1257 Core 24 | 15 . . 9 Treads . | . . . . Legs 416 | 18 337 51 10 Wheels 1238 | . . . 1238 Hover . | . . . . Flight . | . . . . Fastest Speed 50 | 50 120 190 110 Average Speed 115 | 88 123 190 111 Slowest Speed 200 | 120 190 190 200 Overloaded Moves . | . . . . Propulsion Burnouts . | . . . . Robots Hopped . | . . . . Cave-ins Triggered . | . . . . Exploration Rate (%) 31 | 5 48 4 69 Regions Visited 3 Branch Regions 2 Pre-discovered Areas 2 | . . . 2 Known Exits Taken 2 | . 1 1 . Unknown Exits Taken 1 | 1 . . . Scrap Searched 3 | . . . 3 Spaces Dug 5 | . 5 . . Terrain Destroyed 135 | 2 8 . 125 Melee 5 | . 5 . . Projectile . | . . . . AOE 130 | 2 3 . 125 Terrain Rammed . | . . . . Walls Destroyed . | . . . . Machines Disabled . | . . . . Actions | -11 -10 -10 -10 --------- Run | Yrd Mat Min Sub Total 2132 | 48 434 314 1336 Wait 293 | . 22 264 7 Move 1675 | 32 336 50 1257 Hop . | . . . . Pick Up 28 | 5 10 . 13 Fast Attach 5 | 2 . . 3 Attach 15 | 4 5 . 6 Detach . | . . . . Swap 10 | . 3 . 7 Drop 19 | . 5 . 14 Fire 51 | 5 22 . 24 Melee 31 | . 31 . . Ram . | . . . . Kick . | . . . . Crush . | . . . . Escape Stasis . | . . . . Rewire . | . . . . Trap . | . . . . Miscellaneous 5 | . . . 5 Route ------- -11/Scrapyard -10/Materials (discovered 2 exits: *Mat / *Min) -10/Mines -10/Subcaves (discovered 2 exits: [*Mat] / [*Rec]) History --------- Turn | Location | Event 5 | -11/Scrapyard | Discovered new exit (range 15) 55 | -11/Scrapyard | Entered Materials 232 | -10/Materials | Discovered new exit (range 16) 313 | -10/Materials | Build established: Mutant 526 | -10/Materials | Identified exit to Materials 604 | -10/Materials | Discovered new exit (range 14) 669 | -10/Materials | Core integrity fell below 50% 669 | -10/Materials | Identified exit to Mines 671 | -10/Materials | Entered Mines 936 | -10/Mines | Discovered new exit (range 4) 954 | -10/Mines | Identified exit to Subcaves 992 | -10/Mines | Assembled infested the area 997 | -10/Mines | Assisted by a Guerilla fighting off Assembled 1030 | -10/Mines | Entered Subcaves 1309 | -10/Subcaves | Shifting Twisted Machinery released Battle Cannon 1320 | -10/Subcaves | Shifting Twisted Machinery released Sub. Power Source 1454 | -10/Subcaves | Build established: Subdweller-Mutant 1532 | -10/Subcaves | Discovered new exit (range 12) 1665 | -10/Subcaves | Visited triangular shrine 1672 | -10/Subcaves | Found Prototype Device 1681 | -10/Subcaves | Identified V3-11A's Pendant 1706 | -10/Subcaves | Befriended Subdweller 1745 | -10/Subcaves | A swath of the cavern ceiling suddenly collapsed 1973 | -10/Subcaves | Build established: Mutant 2068 | -10/Subcaves | Visited Clippyterm 2071 | -10/Subcaves | Learned location of Extension (-5) 2161 | -10/Subcaves | Befriended Subdweller 2161 | -10/Subcaves | Befriended Subdweller 2265 | -10/Subcaves | Learned location of Zion (-6) 2265 | -10/Subcaves | Met a Zionite searching for "candidates" 2311 | -10/Subcaves | Befriended Subdweller 2311 | -10/Subcaves | Befriended Subdweller 2461 | -10/Subcaves | Discovered new exit (range 7) 2495 | -10/Subcaves | Core integrity fell below 20% 2544 | -10/Subcaves | Destroyed by Piercing Trap Last Messages --------------- 02320_ Dropped Broken Sub. Monowheel. 02326_ 4N-6WR(u) deconstructs Twisted Machinery. 02368_ MZ&HZJK5ONLT>KOYJPW0KCJ:FWU:7 02395_ System corrupted: Component data lost. 02435_ Acquired derelict log, extracted data. Data stored: Storage entrances (x1). 02461_ EXIT=FOUND 02494_ Critical hit (Burn: +37). 02500_ ER-PA5(R) suffers critical hit (Destroy). 02512_ Lgt. Armor Plating fries itself beyond repair. 02520_ Heat Sink fries itself beyond repair. 02521_ Imp. Ion Engine fries itself beyond repair. 02521_ Hvy. Assault Rifle fries itself beyond repair. 02521_ Beam Rifle fries itself beyond repair. 02543_ 6Y-CDG(R) triggered Piercing Trap. 02543_ Spikes shoot up from the floor. 02543_ 6Y-CDG(R) suffers critical hit (Impale). 02544_ Triggered Piercing Trap. 02544_ Spikes shoot up from the floor. 02544_ Critical hit (Impale). Map ----- +----------------------------------------------------+ | # #?????????#### #""# ####### # | | #????????????## " ## ##?????#####" | | #?????????????##"""#" " "######??????????## | | # #??????????????###### ##???????????????# | | #####???????????????????########????????????????# | | #??????????????????????????????????????????????## | | ???????????????????????????????????????????????# | | ???????????????????????????????????????????????### | | ?????????????????????????????????????????????????# | | ?????????????????????????????????????????????????? | | ?????????????????????????????????????????????????? | | ????????????????????????????????????????????????## | | ??????????????????????????????????????????????###" | | ??????????????????????????????????????????????# "" | | ??????????????????????????????????????????????# "" | | ??????????????????????????????????????????????##" | | ???????????????????????????????????????????????### | | ?????????????????????????????????????????????????# | | ?????????????????????????????????????????????????? | | ?????????????????????????????????????????????????? | | ???????????????????##???###??????????????????????? | | ???????????????????# #??# ##???????????????????### | | ???????????????????# ### #??????????????????## | | ???????????????????# ^ ## #?????????????????## | | ????????????????????# ^ #???????????????### | | ???????????????????## @#????????????????# | | ???????????????????# ##????????????????##### | | ???????????????????# #?????????????????????# | | ???????????????????## R##?????????????????????## | | ????????????????######R #???????????????????????## | | ????????????????# ## ##???????????????????????? | | ???????????????### #R ##??????????????????????? | | ???????????????# #??????????????????????? | | ???????????????# ###??????????????????????? | | ???????????????# #????????????????????????? | | ???????????????# ###??????????????????#####?? | | ???????????????# % #????????????????????# ##? | | ???????????????### ##???????????????????# #? | | ????????????????# ##??????????????????# ##? | | ##????###???????# ###????????????????## #? | | # #### #???????# ##????????????????# ##? | | ## ## #???????# #???????????????## #? | | ### #####?### # #???????????????# #? | | ## ### ## #???????????????## ### | | < ### #??????????????# | | ## #?????????###### | | ## ## ## ## ##???????### ##### | | ## #########################?######## #### | | # ##?????????????????????????#"""## #??? | | # #??????????????????????????#"" ## # ##### | +----------------------------------------------------+ Best States ------------- Heat Dissipation 25 Energy Generation 15 Energy Capacity 250 Matter Stores 300 Matter Capacity 300 Sight Range 21 Terrain Scan Density 10 Armor Coverage 800 Utility Shielding 33 Evasion (%) 55 Item Schematics ----------------- None Robot Schematics ------------------ None Fabricated ------------ Nothing Alien Tech Used ----------------- None Achievements -------------- None Challenges ------------ None Game ------ Seed StormMicrowarpAmplifier Manual? 0 Play Time 00:20:58 Cumulative 27.2 hours Start 2025.02.28 @ 17:24:42 End 2025.02.28 @ 19:17:37 Sessions 1 Manual Loads 0 Difficulty Rogue Special Mode None Game No. 48 Rogue 48 Adventurer 0 Explorer 0 Win Type - Total 0 Types 0/0/0/0/0/0/0/0/0 Lore% 26 Gallery% 30 Achievement% 28 Wizard Run 0 Options --------- Layout 0 ASCII 0 Keyboard 0 Movement Mouse Keybinds 0 Fullscreen 1 Font 16/SmallcapsGlow Map View 75x55 Zoom Use 0% Tactical HUD 1 Map Filters NONE Filters NONE Steam 1 RUN: df225613-35bc-438f-9f1e-a2923dba8c64